[Event "DFMM-LV 2023"]
[Site "Braunfels"]
[Date "2023.06.09"]
[Round "2.10"]
[White "Meier, Annemarie"]
[Black "Kopylov, Luba"]
[Result "1/2-1/2"]
[Annotator "TA"]
[ECO "D95"]
[WhiteElo "2258"]
[BlackElo "1993"]
[PlyCount "48"]
[EventDate "2023.06.09"]
[EventType "team-tourn"]
[EventCountry "GER"]
[SourceTitle "playchess.com"]
[Source "ChessBase"]
[SourceQuality "1"]
[TimeControl "40/5400+30:1800+30"]

{[%evp 17,48,26,50,62,64,68,83,27,56,47,44,0,0,0,0,0,0,0,14,-15,12,15,6,21,21,0,0,0,11,0,0,0,21]} 1. d4 {[%emt 0:00:04]} d5 {[%emt 0:00:24]} 2. c4 {[%emt 0:00:20]} c6 {[%emt 0:00:13]} 3. Nc3 {[%emt 0:00:13]} Nf6 {[%emt 0:01:44]} 4. e3 {[%emt 0:00:20]} g6 {[%emt 0:00:56]} 5. Qb3 {[%emt 0:01:06]} Bg7 {[%emt 0:01:43]} 6. Nf3 {[%emt 0:00:52]} O-O {[%emt 0:01:12]} 7. Bd2 {[%emt 0:01:32]} dxc4 {[%emt 0:19:38]} 8. Bxc4 {[%emt 0:01:13]} b5 {[%emt 0:00:11]} 9. Be2 {[%emt 0:02:19]} Be6 {[%emt 0:05:01]} 10. Qc2 {[%emt 0:00:58] D95: Grünfeld: 4 Nf3 Bg7 5 e3 0-0 6 Qb3.} a5 {[%emt 0:12:40]} 11. O-O {[%emt 0:03:17]} Na6 {[%emt 0:07:52]} 12. Ng5 {[%emt 0:06:38]} ({White should try} 12. Rfc1 $16) 12... Bf5 {[%emt 0:04:43]} 13. e4 {[%emt 0:02:54] [#]} Bg4 $146 {[%emt 0:04:20]} ({Predecessor:} 13... Nb4 14. Qd1 Bc8 15. a3 Na6 16. e5 Nd5 17. Nxd5 Qxd5 18. Bxa5 f6 19. Bf3 Qd7 {1-0 Lebredo Zaragoitia,G (2203)-Coutinho,S (2106) Brasilia-ch 52nd 2012 (3)}) 14. Bxg4 {[%emt 0:07:11]} Nxg4 {[%emt 0:00:07] The position is equal.} 15. h3 {[%emt 0:00:47]} Nb4 {[%emt 0:01:59]} 16. Qb1 {[%emt 0:06:30]} Ne5 {[%emt 0:09:44]} (16... Qxd4 $2 17. Nf3 Qd3 18. hxg4 $18) 17. Rd1 {[%emt 0:13:51]} Nc4 {[%emt 0:02:48] [#] Strongly threatening ...e5.} 18. Bf4 {[%emt 0:01:49]} Qb6 {[%emt 0:06:57]} 19. Nf3 {[%emt 0:04:29]} (19. a3 {is interesting.} Bxd4 20. axb4 Bxf2+ 21. Kh1) 19... a4 {[%emt 0:06:18]} 20. a3 {[%emt 0:02:31]} Na6 {[%emt 0:00:11]} 21. b3 {[%emt 0:01:02]} (21. Qc2 $5 {[%cal Rc3a4]}) 21... axb3 {[%emt 0:00:24]} 22. Qxb3 {[%emt 0:00:09]} Na5 {[%emt 0:02:15]} 23. Qb1 {[%emt 0:02:50]} Nc4 {[%emt 0:01:25]} 24. Qb3 {[%emt 0:00:48]} Qd8 {[%emt 0:09:45] Weighted Error Value: White=0.11 (very precise) /Black=0.10 (very precise)} 1/2-1/2

[Event "DFMM-LV 2023"]
[Site "Braunfels"]
[Date "2023.06.09"]
[Round "2.11"]
[White "Braeutigam, Katerina"]
[Black "Kostak, Tetyana"]
[Result "0-1"]
[Annotator "TA"]
[ECO "B00"]
[WhiteElo "1957"]
[BlackElo "2117"]
[PlyCount "58"]
[EventDate "2023.06.09"]
[EventType "team-tourn"]
[EventCountry "GER"]
[SourceTitle "playchess.com"]
[Source "ChessBase"]
[SourceQuality "1"]
[TimeControl "40/5400+30:1800+30"]

{[%evp 9,58,58,70,73,94,58,70,59,71,81,111,93,105,100,107,109,153,161,183,188,175,170,174,172,267,152,143,137,138,139,139,112,119,89,148,68,162,111,153,147,165,-29994,-29995,-29995,-29996,-29997,-29998,-29998,-29998,-29998,-29999]} 1. e4 {[%emt 0:00:02]} Nc6 {[%emt 0:01:58]} 2. d4 {[%emt 0:00:06]} d5 {[%emt 0:00:07]} 3. e5 {[%emt 0:00:50]} Bf5 {[%emt 0:00:29]} 4. Nf3 {[%emt 0:00:37]} Nb4 {[%emt 0:03:56]} 5. Na3 {[%emt 0:07:22]} e6 {[%emt 0:00:23]} 6. c3 {[%emt 0:02:31] [#] B00: Queen's Fianchetto Defence, Nimzowitsch Defence.} Na6 $146 {[%emt 0:00:21]} ({Predecessor:} 6... Nc6 7. Nc2 Be7 8. Bd3 Bg6 9. O-O Nh6 10. h3 Qd7 11. Bg5 Bxg5 12. Nxg5 Nf5 {1-0 Guri,A (1474)-Radaca,N (1697) EU-ch U12 Bratislava 2019 (9)}) 7. Bxa6 {[%emt 0:09:32]} bxa6 {[%emt 0:00:08]} 8. Qa4+ {[%emt 0:01:40] White is slightly better.} Qd7 {[%emt 0:00:15]} 9. Qxa6 {[%emt 0:01:13]} c6 {[%emt 0:08:16]} 10. O-O {[%emt 0:03:23]} Be7 {[%emt 0:04:51]} 11. Nb1 {[%emt 0:11:18][%cal Ba3b1,Bb1d2,Bd2b3,Bb3c5][%mdl 32]} Bd8 {[%emt 0:03:18]} 12. Nbd2 {[%emt 0:02:16]} Nh6 {[%emt 0:00:52]} 13. Nb3 {[%emt 0:02:16]} O-O {[%emt 0:00:36]} 14. Nc5 {[%emt 0:05:23]} Qe8 {[%emt 0:00:08]} 15. h3 {[%emt 0:23:30]} Kh8 {[%emt 0:12:25]} 16. a4 {[%emt 0:09:34]} f6 {[%emt 0:05:23]} (16... Be7 $142 17. Re1 Ng8) 17. Qb7 {[%emt 0:05:29]} (17. exf6 $18 Bxf6 18. Re1) 17... Bb6 $16 {[%emt 0:00:23] Black is weak on the dark squares} 18. exf6 {[%emt 0:02:31][%csl Gf6][%cal Rb7g7]} Rf7 {[%emt 0:01:12]} 19. Qa6 {[%emt 0:02:19] fxg7+ would be deadly.} Rxf6 {[%emt 0:01:10][%cal Of5h3]} 20. Ne5 {[%emt 0:01:26]} Bxc5 {[%emt 0:09:05]} 21. dxc5 {[%emt 0:00:36] Hoping for Bxh6.} Qh5 {[%emt 0:00:12]} ({Better is} 21... Nf7 22. Nxf7+ (22. Nxc6 $2 e5 $19) 22... Rxf7) 22. f4 {[%emt 0:02:53]} (22. Nxc6 $2 {loses.} Bxh3 23. Qd3 (23. gxh3 {gets mated.} Rg6+ 24. Kh2 Ng4+ 25. Kg3 Ne5+ 26. Kh2 Nf3+ {[%mdl 64] Deflection} 27. Kh1 Qxh3#) (23. Qb7 {is a self mate.} Qg4 24. g3 Qf3 25. Qxa8+ Ng8) 23... Rg6 $19) ({White should play} 22. Re1 $16) 22... Be4 {[%emt 0:03:52] [#]} ({Black should try} 22... Nf7 $1 $14) 23. Qxc6 {[%emt 0:02:01]} (23. Rf2 $1 $18) 23... Raf8 {[%emt 0:00:09][%cal Oh5e5] [#]} 24. Bd2 $1 {[%emt 0:00:55] Strongly threatening Rae1.} Nf5 {[%emt 0:01:24][%cal Oe4g2]} 25. Nd7 $4 {[%emt 0:00:53][%mdl 8192] [#]} (25. Qb5 $18) 25... Rg6 $1 {[%emt 0:03:11][%csl LRg2,LRh3] Black mates.} 26. Rf2 {[%emt 0:01:54] [#]} Qxh3 $1 {[%emt 0:01:31]} 27. Bc1 {[%emt 0:00:56] [#]} (27. Qa6 Bxg2) 27... Bxg2 $1 {[%emt 0:01:07][%csl Gg2][%cal Rh3h1]} 28. Rd2 {[%emt 0:00:32]} (28. Re2 Qh1+) 28... Be4+ {[%emt 0:00:24]} 29. Kf2 {[%emt 0:00:09]} Rg2+ {[%emt 0:00:11] What a bad dream for White. Beautiful play by Kostak!   Weighted Error Value: White=0.39/Black=0.19 (very precise)} 0-1

[Event "DFMM-LV 2023"]
[Site "Braunfels"]
[Date "2023.06.09"]
[Round "2.12"]
[White "Valkova, Angelika"]
[Black "Braeutigam, Irina"]
[Result "0-1"]
[Annotator "TA"]
[ECO "A42"]
[WhiteElo "2062"]
[BlackElo "2007"]
[PlyCount "80"]
[EventDate "2023.06.09"]
[EventType "team-tourn"]
[EventCountry "GER"]
[SourceTitle "playchess.com"]
[Source "ChessBase"]
[SourceQuality "1"]
[TimeControl "40/5400+30:1800+30"]

{[%evp 9,80,25,75,47,92,39,60,66,59,37,40,15,15,8,26,4,18,-10,70,55,65,105,47,90,122,132,322,320,298,304,300,267,409,114,129,0,-9,-186,-216,-341,-341,-316,-297,-570,-562,-562,-561,-638,-642,-625,-464,-460,-459,-557,-428,-833,-850,-909,-909,-896,-895,-898,-897,-1069,-1005,-2812,-2505,-29982,-29983,-29984,-29985,-29988,-29989]} 1. d4 {[%emt 0:00:03]} d6 {[%emt 0:00:09]} 2. c4 {[%emt 0:00:15]} g6 {[%emt 0:00:05]} 3. e4 {[%emt 0:01:37]} Bg7 {[%emt 0:00:22]} 4. Nc3 {[%emt 0:01:04]} Nd7 {[%emt 0:00:48]} 5. h4 {[%emt 0:02:27]} h6 {[%emt 0:09:20]} (5... c5 $11 {remains equal.}) 6. Be3 {[%emt 0:07:34] A42: Modern Defence: Averbakh Variation.} c6 {[%emt 0:09:31] [#]} 7. g4 $146 {[%emt 0:11:54]} (7. h5 $16) ({Predecessor:} 7. h5 g5 8. Nge2 Ngf6 9. f3 a6 10. Qd2 b5 11. Ng3 e6 12. O-O-O bxc4 13. Bxc4 d5 {0-1 Pert,R (2416)-Muromtsev,A (2161) Titled Tuesday intern op 15th Sept blitz 2020 (4)}) 7... Qa5 {[%emt 0:06:53]} 8. f3 {[%emt 0:14:06] White is slightly better.} a6 {[%emt 0:11:48]} 9. Rb1 {[%emt 0:10:18]} Qc7 {[%emt 0:11:55]} 10. h5 {[%emt 0:07:30]} g5 $1 {[%emt 0:04:50]} 11. Nge2 {[%emt 0:05:30]} e6 {[%emt 0:01:39]} 12. Qd2 {[%emt 0:05:11]} Ne7 {[%emt 0:01:54]} 13. b4 {[%emt 0:05:29]} f5 {[%emt 0:13:18]} (13... c5 $11) 14. gxf5 $14 {[%emt 0:02:08]} exf5 {[%emt 0:00:03]} 15. f4 $1 $36 {[%emt 0:01:00][%cal Bf3f4,Bf4g5,Bg5h6][%mdl 2080] White has strong initiative.} Nb6 {[%emt 0:04:19]} 16. Ng3 $1 {[%emt 0:01:50]} fxe4 {[%emt 0:05:46]} 17. fxg5 {[%emt 0:02:02]} d5 $2 {[%emt 0:03:35] [#]} (17... Nf5 $16 18. Nxf5 (18. Ngxe4 d5 $14) 18... Bxf5) 18. Bf4 $18 {[%emt 0:00:08]} Qd8 {[%emt 0:00:14]} 19. gxh6 {[%emt 0:00:58]} Bf6 {[%emt 0:00:15]} 20. c5 {[%emt 0:01:38]} Nd7 {[%emt 0:00:06]} (20... Bf5 {was called for.} 21. cxb6 Qxb6) 21. Bh3 $2 {[%emt 0:03:55]} (21. Ngxe4 $18 {is more deadly. aiming for Nd6+.} dxe4 22. Nxe4) 21... Nf8 $16 {[%emt 0:00:32] And now ...Bxh3 would win.} 22. Bxc8 {[%emt 0:02:44]} (22. Ngxe4 $16 dxe4 23. Nxe4 Bh4+ 24. Kd1 (24. Ke2 Bxh3 25. Rxh3 Nd5 $16) 24... Bxh3 25. Rxh3) 22... Qxc8 $11 {[%emt 0:00:43]} 23. Na4 $2 {[%emt 0:00:24] [#] Black keeps a firm grip on the game.} (23. Rg1 $11) 23... Qg4 $1 $19 {[%emt 0:01:13]} 24. Nb6 {[%emt 0:02:22]} (24. Bd6 $142 Ne6 25. Qd1 (25. Nb6 $2 Rd8 $19)) 24... Rd8 {[%emt 0:05:21]} 25. Ne2 {[%emt 0:03:28]} Ne6 {[%emt 0:00:12]} 26. Rg1 $2 {[%emt 0:01:51]} (26. Qe3 {only move.}) 26... Qxh5 {[%emt 0:00:48]} 27. Rb3 {[%emt 0:04:25]} Nf5 {[%emt 0:00:45][%csl LRd4,LRh6]} 28. Be5 {[%emt 0:01:30]} Bxe5 {[%emt 0:03:22]} 29. dxe5 {[%emt 0:00:05]} Qxh6 {[%emt 0:00:20]} 30. Qxh6 {[%emt 0:01:25]} Rxh6 {[%emt 0:00:20]} (30... Nxh6 $2 {too greedy.} 31. Rh3 Ke7 32. Rgh1 $19) 31. a4 {[%emt 0:01:09]} a5 {[%emt 0:01:56][%cal Ba6a5,Ba5b4,Bb4b3][%mdl 32]} 32. Ng3 {[%emt 0:00:00]} (32. bxa5 $142 Nxc5 33. Rc3 Nd3+ 34. Rxd3 exd3 35. Nf4) 32... Nfd4 {[%emt 0:00:20]} 33. Re3 {[%emt 0:00:16]} Nc2+ {[%emt 0:00:48]} 34. Kd2 {[%emt 0:00:07]} Nxe3 {[%emt 0:00:35]} 35. Kxe3 {[%emt 0:00:06]} Rg6 {[%emt 0:01:24]} 36. Kf2 {[%emt 0:00:31]} axb4 {[%emt 0:00:28]} 37. Nxe4 {[%emt 0:01:05]} Rxg1 {[%emt 0:00:37]} 38. Nf6+ {[%emt 0:00:04]} Kf7 {[%emt 0:00:23] Black mates.} 39. Kxg1 {[%emt 0:00:05]} Nxc5 {[%emt 0:00:09]} 40. Kf2 {[%emt 0:00:28]} b3 {[%emt 0:00:33] An entertaining game by Braeutigam.   Weighted Error Value: White=1.03/Black=0.33} 0-1

[Event "DFMM-LV 2023"]
[Site "Braunfels"]
[Date "2023.06.09"]
[Round "2.13"]
[White "Gressmann, Hanna"]
[Black "Gheng, Simona"]
[Result "1-0"]
[Annotator "TA"]
[ECO "B22"]
[WhiteElo "1933"]
[BlackElo "1918"]
[PlyCount "83"]
[EventDate "2023.06.09"]
[EventType "team-tourn"]
[EventCountry "GER"]
[SourceTitle "playchess.com"]
[Source "ChessBase"]
[SourceQuality "1"]
[TimeControl "40/5400+30:1800+30"]

{[%evp 11,83,55,64,32,66,41,59,6,62,38,43,49,96,104,85,59,70,64,68,65,64,64,181,179,176,147,175,141,155,131,129,111,210,148,210,170,164,126,209,136,388,397,395,374,500,458,744,760,746,723,722,620,616,591,643,322,420,363,601,459,539,415,958,915,1726,1425,1991,1955,29989,29982,29992,29993,29995,29996]} 1. e4 {[%emt 0:00:03]} c5 {[%emt 0:00:08]} 2. c3 {[%emt 0:00:07]} d6 {[%emt 0:00:43]} 3. d4 {[%emt 0:00:12]} cxd4 {[%emt 0:00:09]} 4. cxd4 {[%emt 0:00:06]} g6 {[%emt 0:00:55]} 5. Nf3 {[%emt 0:00:55]} Bg7 {[%emt 0:03:39]} 6. Nc3 {[%emt 0:04:03]} Nc6 {[%emt 0:02:00]} 7. h3 {[%emt 0:04:44] B22: Sicilian: 2 c3.} a6 {[%emt 0:02:47]} 8. Be2 {[%emt 0:06:02]} (8. d5 $5 {[%cal Rd5c6]} Ne5 9. Nxe5 dxe5 10. Be3 $14) 8... Nf6 {[%emt 0:03:58]} 9. a4 {[%emt 0:10:49]} ({Better is} 9. d5 $14 Na5 10. Be3) 9... b6 {[%emt 0:07:04]} (9... d5 $11) 10. O-O {[%emt 0:06:08]} O-O {[%emt 0:01:41]} 11. d5 {[%emt 0:01:33] [#]} Ne5 $146 {[%emt 0:04:17]} (11... Nb4 $14 {feels stronger.}) ({Predecessor:} 11... Na5 12. Be3 Nd7 13. Nd4 Ne5 14. b3 Nb7 15. Rc1 Qe8 16. f4 Nd7 17. Nc6 Nd8 {1-0 Rico,A-Palacios,A (2320) Seville op 1993}) 12. Nxe5 $16 {[%emt 0:06:51]} dxe5 {[%emt 0:00:08]} 13. Bc4 {[%emt 0:01:26]} Qc7 {[%emt 0:05:08]} 14. Qe2 $36 {[%emt 0:04:14][%mdl 2048] White fights for an advantage.} Ne8 {[%emt 0:00:51]} 15. Be3 {[%emt 0:04:13]} Nd6 {[%emt 0:00:25]} 16. Bd3 {[%emt 0:01:03] White is more active.} Bd7 {[%emt 0:01:01]} (16... f5 $14) 17. Bxa6 $18 {[%emt 0:04:33]} f5 {[%emt 0:02:30]} 18. Bb5 {[%emt 0:08:02]} Rab8 {[%emt 0:05:56]} 19. Bxd7 {[%emt 0:02:40]} Qxd7 {[%emt 0:00:05]} 20. f3 {[%emt 0:01:08]} Rfc8 {[%emt 0:04:44]} 21. Rac1 {[%emt 0:02:38]} h5 {[%emt 0:01:32]} (21... b5 $16) 22. Bf2 {[%emt 0:04:30]} Kh7 {[%emt 0:03:36]} (22... fxe4 $16 23. fxe4 (23. Nxe4 Qxa4 24. Qd3 Qb5 $16) 23... Rc4) 23. Rfd1 {[%emt 0:02:47]} Bh6 {[%emt 0:02:14]} 24. Rc2 {[%emt 0:01:01]} b5 {[%emt 0:01:50]} (24... fxe4 $16 25. fxe4 (25. Nxe4 Qxa4 26. Rxc8 Rxc8 $16) 25... Rc4) 25. axb5 {[%emt 0:03:21] b6 would be deadly.} Nxb5 $2 {[%emt 0:00:11][%mdl 8192] This move loses the game for Black.} (25... fxe4 $16 {is a better defense.} 26. Nxe4 Rxc2 27. Qxc2 Qxb5) 26. Nxb5 {[%emt 0:03:40]} Rxc2 {[%emt 0:00:10]} 27. Qxc2 {[%emt 0:00:05]} Qxb5 {[%emt 0:01:43]} 28. exf5 {[%emt 0:01:08][%cal Be4f5,Bf5g6][%mdl 32]} Qxb2 {[%emt 0:00:51]} (28... Qb3 $142 29. fxg6+ Kh8) 29. fxg6+ {[%emt 0:00:24]} Kg7 {[%emt 0:00:07]} 30. Qf5 {[%emt 0:03:19]} Rf8 {[%emt 0:02:41] Against Qf7+} 31. Qe6 {[%emt 0:01:47] [#] aiming for Bg3.} Bg5 {[%emt 0:05:45]} 32. Bg3 {[%emt 0:02:51]} Bf6 {[%emt 0:01:01]} 33. Re1 {[%emt 0:03:36][%cal Rg3e5]} Qd2 {[%emt 0:01:03]} 34. Rxe5 {[%emt 0:03:00]} Qd4+ $2 {[%emt 0:02:35]} (34... Qh6 35. Re4 Qxg6) 35. Re3 {[%emt 0:00:30]} Kxg6 {[%emt 0:02:45]} 36. Kh2 {[%emt 0:02:15]} Rd8 {[%emt 0:03:59]} (36... h4 $142 37. Bc7 Qc4) 37. Re5 {[%emt 0:01:20]} h4 {[%emt 0:08:02]} 38. Qf5+ {[%emt 0:00:06]} Kg7 {[%emt 0:00:09]} 39. Bf4 {[%emt 0:00:46] [#] White wants to mate with Qg4+.} Qc4 {[%emt 0:01:29]} 40. Qg4+ {[%emt 0:01:38] White mates.} Kf7 {[%emt 0:02:28]} 41. Qh5+ {[%emt 0:03:17]} Kg7 {[%emt 0:00:26]} 42. Bh6+ {[%emt 0:01:45] Weighted Error Value: White=0.50/Black=0.68} 1-0

[Event "DFMM-LV 2023"]
[Site "Braunfels"]
[Date "2023.06.09"]
[Round "2.14"]
[White "Heil, Marina"]
[Black "Leib, Britta"]
[Result "1/2-1/2"]
[Annotator "TA"]
[ECO "B12"]
[WhiteElo "1866"]
[BlackElo "1960"]
[PlyCount "29"]
[EventDate "2023.06.09"]
[EventType "team-tourn"]
[EventCountry "GER"]
[SourceTitle "playchess.com"]
[Source "ChessBase"]
[SourceQuality "1"]
[TimeControl "40/5400+30:1800+30"]

{[%evp 9,29,-1,17,17,5,17,9,-27,38,35,27,31,35,6,19,0,27,27,27,29,60,22]} 1. e4 {[%emt 0:00:07]} c6 {[%emt 0:00:12]} 2. d4 {[%emt 0:00:39]} d5 {[%emt 0:00:19]} 3. e5 {[%emt 0:00:25]} Bf5 {[%emt 0:01:32]} 4. Nf3 {[%emt 0:01:01]} e6 {[%emt 0:01:42]} 5. Nc3 {[%emt 0:02:13]} c5 {[%emt 0:08:23]} 6. Bg5 {[%emt 0:04:38] B12: Caro-Kann: Advance Variation.} Qa5 {[%emt 0:18:51]} 7. Bb5+ {[%emt 0:04:19]} Nc6 {[%emt 0:01:03]} 8. O-O {[%emt 0:06:10] The position is equal.} a6 {[%emt 0:07:57]} ({Black should play} 8... Bg4 $11) 9. Bxc6+ $14 {[%emt 0:01:59]} bxc6 {[%emt 0:00:03] [#]} 10. a3 $146 {[%emt 0:01:40]} ({Predecessor:} 10. Bd2 Qc7 11. Rc1 Bg4 12. Na4 cxd4 13. Qe1 Bxf3 14. Ba5 Qb7 15. gxf3 Qb5 16. b3 {1-0 Stumpf,A (1831)-Banfelder,H (1574) Regionalliga NW 1213 2012 (3.8)}) 10... c4 {[%emt 0:03:19]} 11. Nh4 {[%emt 0:01:33] With the idea Nxf5.} Bg6 {[%emt 0:06:35]} 12. Bd2 {[%emt 0:01:58]} (12. f4 $5 {[%cal Rf4f5]}) 12... Be7 {[%emt 0:05:06]} 13. Nxg6 {[%emt 0:01:55]} hxg6 {[%emt 0:00:10]} 14. b4 {[%emt 0:09:26]} Qd8 {[%emt 0:05:20]} 15. f4 {[%emt 0:04:05] Weighted Error Value: White=0.11 (very precise) /Black=0.20 (precise)} 1/2-1/2

[Event "DFMM-LV 2023"]
[Site "Braunfels"]
[Date "2023.06.09"]
[Round "2.15"]
[White "Rosmait, Emily"]
[Black "Roesler, Hannah Clara"]
[Result "1-0"]
[Annotator "NA RC COMBH"]
[ECO "B26"]
[WhiteElo "1862"]
[BlackElo "1748"]
[PlyCount "153"]
[EventDate "2023.06.09"]
[EventType "team-tourn"]
[EventCountry "GER"]
[SourceTitle "playchess.com"]
[Source "ChessBase"]
[SourceQuality "1"]
[TimeControl "40/5400+30:1800+30"]

1. e4 {[%emt 0:00:05]} c5 {[%emt 0:00:03]} 2. Nc3 {[%emt 0:00:06]} Nc6 {[%emt 0:00:04]} 3. g3 {[%emt 0:00:16]} g6 {[%emt 0:00:04]} 4. Bg2 {[%emt 0:00:16]} Bg7 {[%emt 0:00:06]} 5. Nge2 {[%emt 0:01:07]} Nf6 {[%emt 0:01:56]} 6. d3 {[%emt 0:03:19]} d6 {[%emt 0:02:10]} 7. h3 {[%emt 0:03:07]} O-O {[%emt 0:02:21]} 8. Be3 {[%emt 0:01:41] The main line 8.Be3 scores better than 8.0-0.} Qb6 {[%emt 0:07:37]} 9. Rb1 {[%emt 0:03:15] [#]} Nd7 $146 {[%emt 0:16:39]} ({Predecessor:} 9... Be6 10. O-O Ne5 11. f4 Ned7 12. Qd2 Rac8 13. Kh2 Qd8 14. f5 Bxa2 15. Nxa2 Ne5 16. Nac3 {1-0 Matura,M (1618)-Prabhu,A US Collegiate Rapid 2021 (1.177)}) 10. O-O {[%emt 0:05:34]} a5 {[%emt 0:02:37]} 11. a4 {[%emt 0:07:23]} Nd4 {[%emt 0:03:40]} 12. Nd5 {[%emt 0:04:00]} Qd8 {[%emt 0:00:56]} 13. c3 {[%emt 0:05:58]} Nxe2+ {[%emt 0:02:18]} 14. Qxe2 {[%emt 0:00:01]} e6 {[%emt 0:02:20]} 15. Nf4 {[%emt 0:00:08]} Nf6 {[%emt 0:01:21]} 16. Qc2 {[%emt 0:11:18]} Bd7 {[%emt 0:03:24]} 17. Ne2 {[%emt 0:05:27]} Rc8 {[%emt 0:01:27]} 18. c4 {[%emt 0:03:01]} Ne8 {[%emt 0:03:47]} 19. b3 {[%emt 0:01:11]} Qe7 {[%emt 0:07:00]} 20. Qd2 {[%emt 0:01:14]} b6 {[%emt 0:04:35]} 21. d4 {[%emt 0:03:31]} Nc7 {[%emt 0:02:14]} 22. d5 {[%emt 0:02:39]} exd5 {[%emt 0:01:02]} 23. exd5 {[%emt 0:02:49]} Rfe8 {[%emt 0:02:47]} 24. Rbe1 {[%emt 0:03:42]} Na6 {[%emt 0:02:16]} 25. Nc3 {[%emt 0:02:59]} Qf8 {[%emt 0:00:47]} 26. Bf4 {[%emt 0:02:05]} f5 {[%emt 0:03:59]} 27. Nb5 {[%emt 0:02:54]} Bxb5 {[%emt 0:01:55]} 28. axb5 {[%emt 0:00:02]} Nb4 {[%emt 0:00:20]} 29. Re6 {[%emt 0:02:30]} Rxe6 {[%emt 0:02:02]} 30. dxe6 {[%emt 0:00:43]} Be5 {[%emt 0:00:21]} 31. Bxe5 {[%emt 0:03:40]} dxe5 {[%emt 0:00:03]} 32. Bd5 {[%emt 0:02:15]} Kg7 {[%emt 0:01:13]} 33. Qc3 {[%emt 0:03:40]} Qf6 {[%emt 0:02:45]} 34. Re1 {[%emt 0:01:35]} e4 {[%emt 0:00:31]} 35. Qxf6+ {[%emt 0:02:05]} Kxf6 {[%emt 0:00:03]} 36. Re2 {[%emt 0:04:11]} Rd8 {[%emt 0:02:45]} 37. Rd2 {[%emt 0:01:34]} Ke5 {[%emt 0:04:31]} 38. Kf1 {[%emt 0:01:25]} g5 {[%emt 0:00:50]} 39. Bxe4 {[%emt 0:05:52]} Re8 {[%emt 0:13:06]} 40. Bd5 {[%emt 0:00:19]} f4 {[%emt 0:01:32]} 41. Kg2 {[%emt 0:10:44]} fxg3 {[%emt 0:02:08]} 42. fxg3 {[%emt 0:00:56]} Re7 {[%emt 0:01:49]} (42... Nxd5 $16 43. cxd5 (43. Rxd5+ Kf6 $11) 43... h5) 43. Kf3 {[%emt 0:01:58]} Kf5 {[%emt 0:00:46]} 44. Ke3 {[%emt 0:00:56]} Ke5 {[%emt 0:00:37]} 45. Kf3 {[%emt 0:01:37]} Kf5 {[%emt 0:00:29]} 46. g4+ {[%emt 0:04:13]} (46. Re2 $18 {and White stays clearly on top.}) 46... Ke5 {[%emt 0:01:15]} 47. Ke3 {[%emt 0:00:30]} (47. h4 $18) 47... h6 {[%emt 0:05:34]} ({Better is} 47... Re8 $16) 48. Kf3 {[%emt 0:01:35]} Re8 $1 {[%emt 0:02:33]} 49. Re2+ $11 {[%emt 0:05:24]} (49. h4 $16) 49... Kd4 {[%emt 0:06:28]} 50. Re4+ {[%emt 0:00:37]} Kc3 {[%emt 0:00:05]} 51. Re3+ {[%emt 0:02:13]} Kd4 {[%emt 0:00:09]} 52. Re4+ {[%emt 0:00:16]} Kc3 {[%emt 0:00:20]} 53. e7 {[%emt 0:03:09]} Kxb3 {[%emt 0:00:59]} 54. Bf7 {[%emt 0:00:23]} Rxe7 {[%emt 0:01:24]} 55. Rxe7 {[%emt 0:00:03]} a4 {[%emt 0:00:42]} 56. Ra7 {[%emt 0:02:11]} a3 {[%emt 0:01:53]} 57. Ke4 {[%emt 0:00:23]} Nc2 {[%emt 0:04:00]} 58. Kf5 {[%emt 0:00:54]} a2 {[%emt 0:02:52]} 59. Rxa2 {[%emt 0:00:09]} Kxa2 {[%emt 0:00:02]} 60. Kg6 {[%emt 0:00:07]} Ne3 {[%emt 0:01:31]} 61. Kxh6 {[%emt 0:00:30]} Kb3 {[%emt 0:00:50]} 62. Kxg5 {[%emt 0:00:09]} Nxc4 {[%emt 0:00:17]} 63. h4 {[%emt 0:00:26]} Kb4 {[%emt 0:00:11]} 64. Bxc4 {[%emt 0:00:41]} Kxc4 {[%emt 0:00:08]} 65. h5 {[%emt 0:00:02]} Kxb5 {[%emt 0:00:27]} 66. h6 {[%emt 0:00:06]} c4 {[%emt 0:00:20]} 67. h7 {[%emt 0:00:07]} c3 {[%emt 0:00:04]} 68. h8=Q {[%emt 0:00:27]} Kc4 {[%emt 0:00:28]} 69. Qg8+ {[%emt 0:01:42]} Kb4 {[%emt 0:00:25]} 70. Qf8+ {[%emt 0:00:23]} Kc4 {[%emt 0:00:50]} 71. Qf7+ {[%emt 0:00:19]} Kb4 {[%emt 0:00:45]} 72. Qe7+ {[%emt 0:00:13]} Kc4 {[%emt 0:01:14]} 73. Qe6+ {[%emt 0:00:10]} Kc5 {[%emt 0:01:08]} 74. Qb3 {[%emt 0:00:15]} Kd4 {[%emt 0:00:11]} 75. Qxb6+ {[%emt 0:00:17]} Kd3 {[%emt 0:00:14]} 76. Qb1+ {[%emt 0:00:14]} c2 {[%emt 0:00:08]} 77. Qc1 {[%emt 0:00:10]} 1-0